bitfinex-derivatives/quotes_ETHF0:USTF0_20250629
["timestamp","ask_amount","ask_price","bid_price","bid_amount"]
[1751235785179,0.65092,2457.5,2457.3,0.65095]
[1751235785378,0.65095,2457.4,2457.0,4.6509]
[1751235785581,0.65093,2457.5,2457.2,0.65099]
[1751235785778,1.3128,2457.6,2457.3,0.65097]
[1751235785981,0.65095,2457.4,2457.1,0.65101]
[1751235786676,2.0515,2457.6,2457.0,4.6509]
[1751235786876,3.85868,2457.7,2457.0,4.6509]
[1751235787086,0.65089,2457.6,2457.3,0.65095]
[1751235787684,3.85868,2457.7,2457.4,0.65094]
[1751235787885,0.65088,2457.7,2457.4,0.65094]
[1751235788086,3.2078,2457.7,2457.0,4.6509]
[1751235788288,3.85867,2457.7,2457.4,0.65094]
[1751235788487,0.65089,2457.6,2457.4,0.65094]
[1751235788687,0.65089,2457.6,2457.3,0.65095]
[1751235789183,3.2078,2457.7,2457.0,4.6509]
[1751235789389,0.65093,2457.5,2457.2,0.65097]
[1751235789591,3.85867,2457.7,2457.0,4.6509]
[1751235789889,3.85867,2457.7,2457.4,0.65093]
[1751235790287,3.2078,2457.7,2457.4,5.0]
[1751235790484,2.42459125,2458.1,2457.6,3.2078]
[1751235790687,2.42459125,2458.2,2457.9,3.2078]
[1751235790886,2.42459125,2458.4,2458.0,1.3837]
[1751235791286,5.63239125,2458.5,2458.3,0.65069]
[1751235791482,2.42459125,2458.5,2458.4,0.65068]
[1751235791794,2.42459125,2458.5,2458.2,3.85851]
[1751235791989,3.07525125,2458.5,2458.2,3.85851]
[1751235792193,2.42459125,2458.5,2458.4,0.65068]
[1751235792892,3.8584,2458.8,2458.5,0.65064]
[1751235793388,3.2078,2458.8,2458.3,1.4249]
[1751235793587,0.65062,2458.7,2458.4,0.65067]
[1751235793787,2.08072,2458.7,2458.3,0.65069]
[1751235794192,3.2078,2459.1,2458.7,0.6506]
[1751235794392,0.65052,2459.0,2458.7,0.6506]
[1751235794591,3.85831,2459.1,2458.7,0.6506]
[1751235794793,3.2078,2459.1,2458.8,0.65055]
[1751235794987,3.85829,2459.1,2458.6,1.4249]
[1751235795191,8.1363,2459.3,2458.6,1.4249]
[1751235795394,3.2078,2459.2,2458.6,2.07551]
[1751235795593,0.65053,2459.0,2458.6,2.07551]
[1751235795892,0.65057,2458.9,2458.6,1.4249]
[1751235796090,0.65056,2458.9,2458.6,1.4249]
[1751235796593,0.65059,2458.8,2458.5,3.85844]
[1751235796891,0.6506,2458.7,2458.5,3.2078]
[1751235797193,4.5464,2459.2,2458.5,3.2078]
[1751235797389,0.65063,2458.6,2458.5,3.2078]
[1751235798086,0.65062,2458.7,2458.5,3.2078]
[1751235798590,0.65059,2458.8,2458.5,3.2078]
[1751235798788,0.65056,2458.9,2458.5,3.2078]
[1751235798989,3.2078,2459.2,2458.5,3.2078]
[1751235799189,0.65054,2459.0,2458.7,0.6506]
[1751235799495,0.65054,2459.0,2458.7,0.65059]
[1751235799691,0.65055,2458.9,2458.6,2.07611]
[1751235799891,0.65055,2458.9,2458.7,1.4255]
[1751235800197,10.6588,2459.2,2458.5,3.2078]
[1751235800198,0.65057,2458.8,2458.5,3.85844]
[1751235800694,0.6506,2458.7,2458.5,3.2078]
[1751235800894,0.65059,2458.8,2458.5,3.85845]
[1751235801094,17.14881997,2459.2,2458.5,3.2078]
[1751235801293,0.65063,2458.6,2458.5,3.2078]
[1751235801784,2.1293,2458.8,2458.5,3.2078]
[1751235801989,0.65062,2458.7,2458.5,3.2078]
[1751235802391,0.65063,2458.6,2458.5,3.2078]
[1751235803496,0.65062,2458.7,2458.5,3.2078]
[1751235803792,3.2078,2459.2,2458.5,3.2078]
[1751235803986,3.2078,2459.2,2458.6,1.3199]
[1751235804191,3.2078,2459.5,2458.9,3.2078]
[1751235804386,3.2078,2459.5,2459.2,0.65044]
[1751235804387,3.8582,2459.5,2459.2,0.65044]
[1751235804591,3.2078,2459.5,2459.0,1.3199]
[1751235804799,3.2078,2459.5,2459.4,0.65041]
[1751235805001,3.2078,2459.5,2459.0,2.0471]
[1751235805296,0.65038,2459.6,2459.2,0.65046]
[1751235805492,0.65038,2459.6,2459.3,1.3957]
[1751235805888,3.2078,2459.8,2459.4,0.65041]
[1751235806194,3.2078,2459.8,2459.5,0.65037]
[1751235806395,3.85812,2459.8,2459.4,0.6504]
[1751235806699,0.65032,2459.8,2459.4,0.6504]
[1751235806898,1.9944,2459.9,2459.5,0.65038]
[1751235807094,0.6841,2459.9,2459.6,3.2078]
[1751235807395,1.34739,2460.3,2459.6,3.2078]
[1751235807598,7.335,2460.4,2460.0,3.2078]
[1751235807794,3.2078,2460.5,2460.1,1.42]
[1751235807990,0.6502,2460.2,2460.1,1.42]
[1751235808192,3.2078,2460.5,2460.0,3.2078]
[1751235808705,3.2078,2460.5,2460.2,0.65019]
[1751235808999,3.2078,2460.5,2460.3,1.42]
[1751235809597,3.2078,2460.5,2460.0,8.30711997]
[1751235809598,3.2078,2460.5,2460.0,10.5418]
[1751235809895,0.65023,2460.1,2460.0,10.5418]
[1751235810204,5.78321997,2460.7,2460.0,10.5418]
[1751235810205,0.6839,2460.7,2460.0,3.2078]
[1751235810395,0.65014,2460.5,2460.3,3.2078]
[1751235810696,0.65011,2460.6,2460.3,3.2078]
[1751235811002,3.85784,2460.9,2460.4,1.4487]
[1751235811297,3.2078,2460.9,2460.4,2.1462]
[1751235811494,0.65006,2460.8,2460.4,0.65013]
[1751235811800,0.65001,2461.0,2460.7,3.2078]
[1751235811999,0.65001,2461.0,2460.8,1.4487]
[1751235812195,1.34326,2461.2,2460.8,2.09873]
[1751235812400,3.2078,2461.3,2461.0,0.64999]
[1751235812598,3.2078,2461.3,2461.1,2.09865]
[1751235812796,0.64987,2461.5,2461.2,1.4487]
[1751235812992,0.64991,2461.3,2461.2,1.4487]
[1751235813192,0.64994,2461.2,2460.8,11.2621]
[1751235813397,3.2078,2461.6,2460.9,1.4487]
[1751235813694,3.2078,2461.6,2460.8,11.2621]
[1751235813695,0.64996,2461.2,2461.1,3.2078]
[1751235813895,0.64993,2461.3,2461.1,3.2078]
[1751235814090,0.64988,2461.5,2461.1,3.85776]
[1751235814297,3.2078,2461.9,2461.4,5.09931997]
[1751235814503,3.2078,2461.9,2461.2,8.7486]
[1751235814504,3.2078,2462.5,2461.8,3.2078]
[1751235814697,1.62413,2462.3,2461.6,10.5398]
[1751235814898,4.6532,2462.4,2461.9,3.2078]
[1751235815097,0.64966,2462.3,2461.9,3.2078]
[1751235815297,3.2078,2462.4,2462.0,7.33]
[1751235815493,3.2078,2462.4,2461.9,3.2078]
[1751235815801,0.64979,2461.8,2461.6,8.0523]
[1751235816003,4.83189,2462.4,2461.7,3.2078]
[1751235816004,3.2078,2462.4,2461.7,3.2078]
[1751235816199,3.2078,2462.4,2460.9,26.453]
[1751235816200,3.2078,2462.7,2462.1,3.2078]
[1751235816406,3.2078,2463.0,2462.5,5.09931997]
[1751235816700,3.2078,2463.0,2462.6,7.33]
[1751235816907,3.85728,2463.0,2462.6,7.17638897]
[1751235817107,0.64954,2462.8,2462.6,7.17638897]
[1751235817403,3.2078,2463.0,2462.6,7.17638897]
[1751235817404,0.64954,2462.7,2462.6,7.17638897]
[1751235817601,3.2078,2463.0,2462.6,7.17638897]
[1751235817602,0.64953,2462.8,2462.6,7.17638897]
[1751235817799,3.2078,2463.0,2462.6,7.17638897]
[1751235818201,3.2078,2463.0,2462.4,3.2078]
[1751235818402,0.64955,2462.7,2462.5,7.33]
[1751235818803,0.64957,2462.6,2462.5,7.33]
[1751235819108,3.2078,2463.7,2462.6,1.62393]
[1751235819301,3.2078,2464.0,2463.1,0.64943]
[1751235819502,0.6494,2463.3,2462.9,3.2078]
[1751235819702,0.64945,2463.1,2462.9,3.2078]
[1751235819908,3.2078,2463.5,2462.9,3.2078]
[1751235819909,0.6494,2463.3,2462.9,3.2078]
[1751235820100,7.328,2463.6,2463.0,3.2078]
[1751235820301,3.2078,2463.9,2463.3,3.2078]
[1751235820705,3.2078,2463.9,2463.1,0.6608]
[1751235820901,3.2078,2463.5,2462.9,3.2078]
[1751235821101,0.64945,2463.1,2462.9,3.2078]
[1751235821311,3.2078,2463.5,2462.9,3.2078]
[1751235821507,0.64946,2463.0,2462.9,3.2078]
[1751235822103,0.64943,2463.2,2462.9,3.2078]
[1751235822309,3.2078,2463.5,2462.9,3.2078]
[1751235822510,0.6911,2463.8,2463.4,3.2078]
[1751235822699,0.6911,2463.8,2463.1,7.326]
[1751235822905,0.6911,2463.8,2463.3,3.2078]
[1751235823207,0.6911,2463.8,2463.1,7.326]
[1751235823508,0.6911,2463.8,2463.3,3.2078]
[1751235823709,0.64934,2463.5,2463.1,7.97542]
[1751235824004,0.64932,2463.6,2463.3,3.2078]
[1751235824206,0.64937,2463.4,2463.2,3.2078]
[1751235824402,0.64945,2463.1,2462.9,3.2078]
[1751235824606,0.64945,2463.1,2462.7,7.97354]
[1751235824810,0.64938,2463.4,2463.0,0.64945]
[1751235825012,0.6494,2463.3,2462.9,3.85728]
[1751235825308,4.6074,2463.7,2462.9,3.2078]
[1751235825505,5.25669,2463.7,2463.3,0.64937]
[1751235825706,0.6911,2463.8,2463.5,0.64933]
[1751235826011,3.2078,2464.0,2463.4,3.2078]
[1751235826211,0.64927,2463.8,2463.4,3.85716]
[1751235826408,3.2078,2464.0,2463.4,3.2078]
[1751235826707,0.6702,2464.1,2463.7,3.2078]
[1751235827006,3.2078,2464.3,2463.7,3.2078]
[1751235827212,3.2078,2464.6,2464.0,3.2078]
[1751235827405,0.64908,2464.5,2464.1,0.64916]
[1751235827605,3.2078,2464.6,2464.0,3.85699]
[1751235827906,3.2078,2464.6,2464.0,3.2078]
[1751235828204,3.2078,2464.6,2464.0,3.85698]
[1751235828205,0.6491,2464.4,2464.0,3.85698]
[1751235828406,0.64908,2464.5,2464.0,3.2078]
[1751235828611,0.64908,2464.5,2464.1,1.98906]
[1751235828811,0.6491,2464.4,2464.1,1.3399]
[1751235829002,0.64917,2464.1,2464.0,3.2078]
[1751235829204,5.09931997,2464.1,2463.1,48.736]
[1751235829411,3.2078,2463.9,2463.3,3.2078]
[1751235829612,0.64919,2464.1,2463.8,3.2078]
[1751235829808,4.6242,2464.5,2463.8,4.5572]
[1751235830112,0.64911,2464.4,2464.0,0.64919]
[1751235830306,3.2078,2464.5,2464.1,0.64917]
[1751235830307,3.85688,2464.5,2464.1,0.64917]
[1751235830502,0.64915,2464.3,2463.9,0.64921]
[1751235830707,0.64917,2464.2,2463.8,3.85704]
[1751235830906,0.64914,2464.3,2463.9,0.64922]
[1751235831109,3.2078,2464.5,2464.0,0.6492]
[1751235831304,3.2078,2464.5,2463.9,1.3494]
[1751235831507,3.2078,2464.5,2463.8,3.2078]
[1751235831508,4.6242,2464.5,2463.8,3.2078]
[1751235831808,3.2078,2464.5,2463.9,7.322]
[1751235832009,3.2078,2464.5,2464.1,0.64917]
[1751235832312,3.85687,2464.5,2464.1,0.64917]
[1751235832508,3.2078,2464.5,2464.0,1.4181]
[1751235832712,3.2078,2464.5,2464.1,0.64916]
[1751235832713,0.64911,2464.4,2464.1,0.64916]
[1751235833011,5.09931997,2464.3,2463.5,3.2078]
[1751235833203,3.2078,2463.9,2463.5,3.2078]
[1751235833609,0.64917,2464.1,2463.5,3.2078]
[1751235833816,0.64914,2464.3,2463.9,3.85701]
[1751235834111,3.85694,2464.3,2463.9,3.85701]
[1751235834316,3.2078,2464.3,2463.9,3.2078]
[1751235834507,7.321,2464.5,2463.9,3.2078]
[1751235834704,3.2078,2464.6,2463.9,3.2078]
[1751235834907,4.6355,2464.6,2463.9,3.2078]
[1751235835104,4.6355,2464.6,2463.8,7.321]
[1751235835105,0.64919,2464.1,2463.8,7.321]
[1751235835511,0.64921,2464.0,2463.6,3.2078]
[1751235835707,0.64919,2464.1,2463.7,0.64926]
[1751235835904,0.6492,2464.0,2463.7,2.05596]
[1751235836114,0.64922,2464.0,2463.7,1.4067]
[1751235836409,1.4277,2464.2,2463.7,1.4067]
[1751235836614,1.4277,2464.2,2463.6,3.2078]
[1751235836814,0.6783,2464.1,2463.6,3.2078]
[1751235837114,0.64928,2463.7,2463.6,3.2078]
[1751235837315,0.64927,2463.8,2463.6,3.2078]
[1751235838210,0.6909,2463.9,2463.3,10.7708]
[1751235838511,1.3901,2463.8,2463.3,11.42018]
[1751235838706,0.64931,2463.6,2463.4,1.3503]
[1751235839113,0.64925,2463.8,2463.4,1.3503]
[1751235839409,3.2078,2464.0,2463.3,3.2078]
[1751235839714,0.64936,2463.4,2463.3,3.2078]
[1751235840610,15.7708,2463.4,2462.9,3.2078]
[1751235840805,2.805,2463.3,2463.0,0.64946]
[1751235841011,0.7138,2463.3,2462.9,3.2078]
[1751235841205,0.7138,2463.3,2463.0,1.421]
[1751235841206,0.64941,2463.2,2463.0,1.421]
[1751235841412,1.3632,2463.3,2463.0,1.421]
[1751235841615,0.7138,2463.3,2462.9,3.2078]
[1751235841812,0.64944,2463.1,2462.9,3.2078]
[1751235842007,0.7138,2463.3,2462.9,3.2078]
[1751235842315,0.64939,2463.3,2463.0,0.64945]
[1751235842511,3.2078,2463.4,2463.0,1.421]
[1751235842816,0.7138,2463.7,2463.4,0.64934]
[1751235842817,3.2078,2463.7,2463.4,0.64934]
[1751235843114,0.7011,2463.8,2463.5,1.421]
[1751235843312,3.2078,2464.0,2463.5,1.421]
[1751235843516,0.7149,2464.3,2463.5,1.421]
[1751235843517,0.7149,2464.3,2463.8,3.85704]
[1751235843717,3.8802,2464.4,2463.9,1.421]
[1751235843914,3.8802,2464.4,2463.9,2.07021]
[1751235844214,3.2078,2464.4,2463.9,2.07021]
[1751235844413,0.64918,2464.1,2463.9,1.421]
[1751235844811,1.62281,2464.3,2463.7,0.6634]
[1751235845007,0.64931,2463.6,2463.5,3.2078]
[1751235846318,0.64939,2463.3,2463.0,1.3485]
[1751235846517,0.64937,2463.4,2463.0,1.3485]
[1751235846717,0.64939,2463.3,2463.0,1.3485]
[1751235847118,5.5278,2463.7,2463.0,1.3485]
[1751235847320,0.64944,2463.1,2462.9,11.4332]
[1751235847619,3.9046,2463.7,2462.9,11.4332]
[1751235847917,0.64932,2463.6,2463.4,3.2078]
[1751235848114,5.2522,2464.0,2463.4,3.2078]
[1751235848315,5.2522,2464.0,2463.5,1.3829]
[1751235848316,0.64927,2463.8,2463.5,1.3829]
[1751235848521,6.28160125,2464.0,2463.6,0.6493]
[1751235848820,2.42459125,2464.0,2463.8,3.2078]
[1751235849117,2.42459125,2464.2,2463.9,1.3829]
[1751235849419,0.64918,2464.1,2463.9,1.3829]
[1751235849817,6.32139125,2464.4,2463.9,1.3829]
[1751235849818,0.64916,2464.2,2463.9,1.3829]
[1751235850016,3.8968,2464.4,2463.5,5.27292]
[1751235850218,3.2078,2464.1,2463.5,5.9951]
[1751235850418,3.2078,2464.1,2463.5,5.2928]
[1751235850617,0.64921,2464.0,2463.6,0.64929]
[1751235850917,0.64921,2464.0,2463.7,1.3715]
[1751235851117,0.64919,2464.1,2463.8,3.2078]
[1751235851320,0.64916,2464.2,2463.8,3.85705]
[1751235851515,5.2235,2464.4,2463.9,1.3715]
[1751235851516,3.8968,2464.4,2463.9,1.3715]
[1751235851722,0.6492,2464.0,2463.9,1.3715]
[1751235851917,0.64919,2464.1,2463.9,1.3715]
[1751235852222,0.6492,2464.0,2463.9,1.3715]
[1751235852423,0.64919,2464.1,2463.9,1.3715]
[1751235852616,0.64918,2464.1,2463.9,1.3715]
[1751235853221,0.64916,2464.2,2463.9,1.3715]
[1751235853422,12.7865,2464.4,2463.9,1.3715]
[1751235853621,12.7865,2464.4,2463.7,3.2078]
[1751235853622,0.64925,2463.8,2463.7,3.2078]
[1751235853820,0.6493,2463.6,2463.5,2.0328]
[1751235854023,0.64933,2463.5,2463.4,3.2078]
[1751235854421,0.64933,2463.5,2463.4,4.37187322]
[1751235854718,0.64933,2463.5,2463.4,3.2078]
[1751235854924,0.6493,2463.7,2463.4,3.2078]
[1751235855124,0.64931,2463.6,2463.4,4.5271]
[1751235855417,0.64933,2463.5,2463.4,3.2078]
[1751235856821,3.2078,2463.7,2463.1,3.2078]
[1751235857119,2.1304,2463.6,2463.1,3.2078]
[1751235857422,0.64934,2463.5,2463.2,0.6494]
[1751235857618,3.2078,2463.7,2463.2,1.415]
[1751235857813,3.2078,2463.7,2463.4,0.64934]
[1751235858021,3.85709,2463.7,2463.5,1.415]
[1751235858713,0.6493,2463.6,2463.5,1.415]
[1751235858923,0.6493,2463.6,2463.2,2.06439]
[1751235859119,3.2078,2463.7,2463.1,3.2078]
[1751235859120,0.64934,2463.5,2463.3,1.4532]
[1751235859520,3.2078,2463.7,2463.1,4.39663635]
[1751235859824,0.64941,2463.2,2463.1,3.2078]
[1751235860024,0.64941,2463.2,2463.1,4.39663635]
[1751235860819,0.64944,2463.1,2463.0,1.18883635]
[1751235861727,0.64946,2463.0,2462.9,1.18883635]
[1751235861919,0.64952,2462.8,2462.7,4.39663635]
[1751235862227,0.64952,2462.8,2462.7,1.18883635]
[1751235862723,0.64954,2462.7,2462.6,1.58554849]
[1751235862923,0.64954,2462.7,2462.6,1.18991385]
[1751235863429,0.64957,2462.6,2462.5,1.18991385]
[1751235863631,0.6496,2462.5,2462.4,1.18991385]
[1751235864234,1.4329,2462.7,2462.3,4.39771385]
[1751235864235,0.64962,2462.4,2462.3,4.39771385]
[1751235864531,0.64962,2462.4,2462.2,1.58554849]
[1751235864532,0.64965,2462.3,2462.2,1.18991385]
[1751235864731,4.5755,2462.8,2462.0,9.49703382]
[1751235864921,0.64967,2462.2,2462.1,1.3186]
[1751235865120,1.62392,2462.7,2461.9,1.18991385]
[1751235865121,0.64973,2462.0,2461.9,1.18991385]
[1751235865326,10.7718,2462.5,2461.9,1.18991385]
[1751235865520,10.7718,2462.5,2461.9,1.3882]
[1751235865521,0.64965,2462.3,2461.9,1.3882]
[1751235865732,0.64964,2462.4,2462.0,0.64973]
[1751235865925,0.64964,2462.4,2462.0,0.64971]
[1751235866126,0.64966,2462.3,2461.9,2.03794]
[1751235866827,0.64968,2462.2,2461.9,1.3882]
[1751235867029,0.6497,2462.1,2461.9,1.3882]
[1751235867229,10.6928,2462.5,2461.8,3.2078]
[1751235867230,1.3582,2462.4,2461.8,3.2078]
[1751235867424,0.64969,2462.2,2461.8,3.85757]
[1751235867630,0.64969,2462.2,2461.9,1.3882]
[1751235868629,1.3582,2462.4,2461.9,1.3882]
[1751235868828,3.2078,2462.5,2461.9,1.3882]
[1751235869137,3.2078,2462.5,2462.0,5.82711997]
[1751235869325,3.2078,2462.5,2462.4,0.64962]
[1751235869529,3.2078,2462.5,2462.3,0.64963]
[1751235869826,3.2078,2462.5,2462.4,1.3444]
[1751235870027,3.85739,2462.5,2462.4,1.3444]
[1751235870234,8.13556,2462.7,2462.4,4.5522]
[1751235870434,8.8547,2462.8,2462.4,5.20181]
[1751235870728,0.64958,2462.6,2462.4,4.5522]
[1751235871126,1.3677,2462.8,2462.6,0.64956]
[1751235871326,3.2078,2462.9,2462.6,0.64956]
[1751235871525,3.2078,2462.9,2462.4,4.5522]
[1751235871730,0.64959,2462.6,2462.4,3.2078]
[1751235872030,10.6948,2462.6,2462.0,4.58532]
[1751235872334,0.64966,2462.3,2462.0,3.9356]
[1751235872528,2.7416,2462.5,2462.0,3.2078]
[1751235872729,5.63239125,2463.3,2462.4,4.83186]
[1751235872928,0.64945,2463.1,2462.9,3.2078]
[1751235873235,7.487,2463.2,2462.6,3.85736]
[1751235873430,8.8108,2463.2,2462.6,3.85736]
[1751235873626,8.8108,2463.2,2462.6,3.2078]
[1751235873834,0.6495,2462.9,2462.6,3.2078]
[1751235874130,1.3238,2463.2,2462.6,3.2078]
[1751235874436,0.64954,2462.7,2462.6,3.2078]
[1751235875130,7.487,2462.8,2462.6,3.2078]
[1751235875436,0.64953,2462.8,2462.6,3.2078]
[1751235875932,0.64954,2462.7,2462.6,3.2078]
[1751235876136,0.64953,2462.8,2462.6,3.2078]
[1751235876531,3.2078,2463.0,2462.6,3.2078]
[1751235876736,3.2078,2463.0,2462.9,0.64949]
[1751235876737,7.487,2463.0,2462.9,0.64949]
[1751235877239,3.2078,2463.3,2462.8,0.64951]
[1751235877436,3.2078,2463.3,2462.6,3.2078]
[1751235877437,0.64941,2463.2,2462.9,2.05999]
[1751235877736,10.6948,2463.3,2462.9,4.6183]
[1751235877934,11.3442,2463.3,2462.9,5.26779]
[1751235878332,0.64941,2463.2,2462.9,4.6183]
[1751235878533,0.64941,2463.2,2462.9,5.26778]
[1751235878732,0.64941,2463.2,2462.9,4.6183]
[1751235878935,0.64946,2463.1,2462.9,4.6183]
[1751235879232,0.64946,2463.0,2462.9,4.6183]
[1751235879432,3.2078,2463.0,2462.4,4.6183]
[1751235879633,8.8874,2462.9,2462.4,4.6183]
[1751235879836,0.64959,2462.6,2462.4,4.6183]
[1751235880028,0.6496,2462.5,2462.4,4.6183]
[1751235880233,0.64958,2462.6,2462.4,3.2078]
[1751235880427,0.64957,2462.6,2462.4,3.2078]
[1751235880634,0.6496,2462.5,2462.4,3.2078]
[1751235883839,0.64965,2462.3,2462.1,2.021]
[1751235884038,0.64967,2462.2,2462.1,1.3165]
[1751235884338,7.487,2462.5,2462.0,3.9263]
[1751235884538,7.487,2462.5,2462.1,1.4475]
[1751235884934,0.64963,2462.4,2462.1,1.4475]
[1751235885127,7.487,2462.5,2462.1,1.4475]
[1751235885128,0.64965,2462.3,2462.1,1.4475]
[1751235885735,0.64964,2462.4,2462.1,2.0972]
[1751235885938,0.64964,2462.4,2462.2,1.4475]
[1751235886334,8.13661,2462.5,2462.2,1.4475]
[1751235886529,3.2078,2462.7,2462.2,1.4475]
[1751235886729,0.64955,2462.7,2462.3,3.2078]
[1751235886936,7.487,2462.7,2462.4,2.0088]
[1751235887135,8.13654,2462.7,2462.4,2.0088]
[1751235887440,0.7162,2462.8,2462.4,1.3592]
[1751235887635,1.36572,2462.8,2462.5,0.64957]
[1751235887834,0.64954,2462.7,2462.6,1.3592]
[1751235888537,0.64959,2462.6,2462.4,3.2078]
[1751235888836,4.83168,2462.7,2462.1,3.2078]
[1751235889041,4.5415,2462.7,2462.1,5.21669]
[1751235889238,0.64962,2462.5,2462.2,0.64967]
[1751235889439,0.64962,2462.5,2462.3,1.3592]
[1751235889636,3.2078,2462.7,2462.3,1.3592]
[1751235889835,0.64957,2462.6,2462.3,2.00883]
[1751235890041,3.85737,2462.7,2462.4,0.64962]
[1751235890337,0.64957,2462.7,2462.5,1.3561]
[1751235890537,8.2073,2462.9,2462.5,1.3561]
[1751235890740,0.64957,2462.6,2462.5,1.3561]
[1751235891042,0.64956,2462.7,2462.5,1.3561]
[1751235891242,0.64952,2462.8,2462.5,1.3561]
[1751235891537,0.64952,2462.9,2462.6,0.64957]
[1751235891742,10.6948,2463.0,2462.7,1.3561]
[1751235891743,0.64952,2462.8,2462.7,1.3561]
[1751235892043,10.6948,2463.0,2462.4,3.8765]
[1751235892044,0.64959,2462.5,2462.4,3.8765]
[1751235892239,0.64959,2462.5,2462.4,3.2078]
[1751235892543,0.64958,2462.6,2462.4,3.2078]
[1751235892937,0.64959,2462.5,2462.4,3.2078]
[1751235893442,4.45878148,2462.9,2462.2,1.3561]
[1751235893632,1.3982,2462.8,2462.2,1.3561]
[1751235893941,0.6496,2462.5,2462.2,2.00577]
[1751235894140,0.6496,2462.5,2462.2,2.00576]
[1751235894742,0.64958,2462.6,2462.3,0.64965]
[1751235894942,1.31076,2462.7,2462.4,0.64962]
[1751235895143,0.64957,2462.6,2462.3,0.64963]
[1751235895340,1.31076,2462.7,2462.4,0.64962]
[1751235895542,0.64957,2462.6,2462.3,0.64965]
[1751235895738,0.64957,2462.6,2462.4,1.3514]
[1751235896144,0.64959,2462.5,2462.4,1.3514]
[1751235896344,0.64958,2462.6,2462.4,1.3514]
[1751235896536,14.74310125,2463.0,2462.5,4.45878148]
[1751235896537,3.2078,2463.0,2462.5,4.45878148]
[1751235896737,2.42459125,2463.1,2463.0,0.64946]
[1751235896944,2.42459125,2463.4,2463.3,0.64938]
[1751235897242,2.42459125,2463.4,2463.3,3.85718]
[1751235897441,3.23278834,2463.8,2463.7,0.64928]
[1751235897643,3.23278834,2464.1,2464.0,0.6492]
[1751235897842,8.08197086,2465.2,2464.0,8.3078]
[1751235898043,11.25983006,2466.3,2466.2,0.64862]
[1751235898245,49.9886517,2468.2,2467.9,0.64816]
[1751235898451,49.9886517,2468.2,2466.8,1.62115]
[1751235898452,3.2078,2471.2,2469.5,3.2078]
[1751235898646,0.41581198,2473.8,2471.1,3.2078]
[1751235898840,3.2078,2472.8,2471.6,8.27455734]
[1751235899142,1.3939,2473.4,2471.6,3.2078]
[1751235899143,20.26359423,2471.7,2471.6,3.2078]
[1751235899448,18.19188423,2471.7,2471.6,8.855]
[1751235899748,3.2078,2472.1,2471.6,3.2078]
[1751235899945,3.2078,2472.6,2472.0,3.2078]
[1751235900150,20.228,2472.0,2471.6,8.38836655]
[1751235900344,29.407,2471.9,2471.7,1.6187005]
[1751235900644,20.2288,2472.1,2471.8,1.6187005]
[1751235900849,20.2288,2472.1,2471.7,3.2078]
[1751235900850,3.2078,2472.3,2472.0,10.19125989]
[1751235901055,9.179,2472.4,2472.1,1.6187005]
[1751235901344,9.80815337,2472.9,2472.2,1.6187005]
[1751235901545,20.2224,2472.8,2472.7,12.36252604]
[1751235901746,0.64726,2471.4,2470.5,15.91262813]
[1751235902048,3.2078,2471.2,2470.6,6.37485342]
[1751235902351,3.2078,2471.9,2470.7,0.61280459]
[1751235902650,3.2078,2471.5,2470.9,3.2078]
[1751235902847,3.2078,2472.3,2471.2,3.2078]
[1751235903145,22.01398047,2472.0,2471.9,14.65137332]
[1751235903347,3.2078,2471.6,2470.6,5.35908014]
[1751235903541,10.27646567,2470.7,2469.7,0.37342501]
[1751235903740,7.06866567,2470.2,2469.8,0.63245653]
[1751235903949,0.6477,2469.7,2469.6,19.68405235]
[1751235904146,1.04334707,2469.7,2469.6,18.3660949]
[1751235904350,1.04334707,2469.7,2469.6,17.4044349]
[1751235904546,1.04334707,2469.7,2469.6,16.2421549]
[1751235904740,16.49634707,2469.7,2469.6,14.7621549]
[1751235904947,1.6198,2468.9,2467.7,25.460205]
[1751235905142,6.67392474,2468.4,2467.7,25.460205]
[1751235905344,0.6482,2467.8,2467.7,24.762775]
[1751235905650,11.1012,2467.8,2467.7,23.927265]
[1751235905951,3.2078,2468.2,2467.7,23.927265]
[1751235905952,3.2078,2468.2,2467.7,22.976835]
[1751235906152,10.449,2468.1,2467.7,22.976835]
[1751235906347,46.02635248,2468.7,2468.0,3.2078]
[1751235906558,0.64812,2468.1,2468.0,3.2078]
[1751235907052,1.12101782,2468.1,2468.0,3.2078]
[1751235907253,11.09712,2468.1,2468.0,3.2078]
[1751235907457,11.09712,2468.1,2468.0,2.29821]
[1751235907757,0.64815,2468.0,2467.9,12.05391284]
[1751235908054,0.64815,2468.0,2467.9,11.39294284]
[1751235908355,12.40725,2468.0,2467.9,11.39294284]
[1751235908565,3.89870842,2468.0,2467.6,24.8602874]
[1751235908852,3.8934,2469.9,2467.9,7.06866567]
[1751235909053,49.28273,2469.6,2469.5,8.66e-06]
[1751235909247,0.64796,2468.7,2468.6,6.86023446]
[1751235909444,11.09596,2468.7,2468.6,5.02202446]
[1751235909649,11.09596,2468.7,2468.6,4.21153446]
[1751235909957,11.89604567,2469.3,2468.1,3.2078]
[1751235910250,0.64804,2468.5,2468.1,3.2078]
[1751235910451,0.64807,2468.3,2468.2,1.4293]
[1751235910753,3.2078,2469.3,2468.7,2.0245]
[1751235910949,11.09583,2469.2,2469.1,3.00946813]
[1751235911149,0.64788,2469.0,2468.9,1.37138]
[1751235911351,51.8428,2469.3,2468.6,3.76183516]
[1751235911554,51.8428,2469.3,2469.1,1.37138]
[1751235911555,0.64783,2469.2,2469.1,1.37138]